[Event "Titled Tuesday Blitz May 24 Early 2022"]
[White "Bachmann, Axel"]
[Black "Shipov, Sergei"]
[WhiteFideId "3700488"]
[BlackFideId "4113624"]
[WhiteElo "2587"]
[BlackElo "2808"]
[Result "1-0"]
[Round "06"]
[TimeControl "180+1"]
[Date "2022.05.24"]
[WhiteClock "0:00:01"]
[BlackClock "0:00:19"]

1. e4 {[%clk 0:02:58]}  e6 {[%clk 0:02:59]} 2. Qe2 {[%clk 0:02:56]}  c5 {[%clk 0:02:58]} 3. g3 {[%clk 0:02:54]}  Nc6 {[%clk 0:02:59]} 4. Bg2 {[%clk 0:02:53]}  g6 {[%clk 0:02:59]} 5. Nf3 {[%clk 0:02:48]}  Bg7 {[%clk 0:02:59]} 6. O-O {[%clk 0:02:48]}  Nge7 {[%clk 0:02:59]} 7. c3 {[%clk 0:02:48]}  e5 {[%clk 0:02:59]} 8. Na3 {[%clk 0:02:41]}  O-O {[%clk 0:02:59]} 9. d3 {[%clk 0:02:39]}  d6 {[%clk 0:02:59]} 10. Nc2 {[%clk 0:02:35]}  h6 {[%clk 0:02:56]} 11. b4 {[%clk 0:02:34]}  Be6 {[%clk 0:02:53]} 12. b5 {[%clk 0:02:20]}  Na5 {[%clk 0:02:53]} 13. c4 {[%clk 0:02:18]}  a6 {[%clk 0:02:53]} 14. Rb1 {[%clk 0:02:16]}  axb5 {[%clk 0:02:45]} 15. Rxb5 {[%clk 0:02:17]}  Nac6 {[%clk 0:02:44]} 16. a3 {[%clk 0:02:11]}  Qd7 {[%clk 0:02:43]} 17. Bd2 {[%clk 0:02:07]}  Bg4 {[%clk 0:02:39]} 18. Rfb1 {[%clk 0:02:06]}  Ra7 {[%clk 0:02:38]} 19. Qe1 {[%clk 0:02:04]}  Nd4 {[%clk 0:02:17]} 20. Nfxd4 {[%clk 0:01:58]}  exd4 {[%clk 0:02:15]} 21. Qc1 {[%clk 0:01:52]}  h5 {[%clk 0:02:12]} 22. Qb2 {[%clk 0:01:49]}  Rb8 {[%clk 0:02:05]} 23. Bf4 {[%clk 0:01:49]}  Nc6 {[%clk 0:02:00]} 24. Rb6 {[%clk 0:01:38]}  Ne5 {[%clk 0:01:47]} 25. Bxe5 {[%clk 0:01:26]}  Bxe5 {[%clk 0:01:47]} 26. f3 {[%clk 0:01:08]}  Be6 {[%clk 0:01:47]} 27. f4 {[%clk 0:01:08]}  Bg7 {[%clk 0:01:45]} 28. Ne1 {[%clk 0:01:08]}  Qc7 {[%clk 0:01:37]} 29. Nf3 {[%clk 0:00:56]}  Bf6 {[%clk 0:01:35]} 30. Qc1 {[%clk 0:00:52]}  Rba8 {[%clk 0:01:32]} 31. f5 {[%clk 0:00:50]}  Bd7 {[%clk 0:01:17]} 32. fxg6 {[%clk 0:00:43]}  fxg6 {[%clk 0:01:16]} 33. Qf4 {[%clk 0:00:39]}  Rf8 {[%clk 0:01:06]} 34. Qxd6 {[%clk 0:00:36]}  Qxd6 {[%clk 0:01:06]} 35. Rxd6 {[%clk 0:00:37]}  Bc6 {[%clk 0:01:06]} 36. Rb3 {[%clk 0:00:28]}  Kg7 {[%clk 0:01:04]} 37. Nh4 {[%clk 0:00:17]}  Rd8 {[%clk 0:00:53]} 38. e5 {[%clk 0:00:11]}  Rxd6 {[%clk 0:00:50]} 39. exd6 {[%clk 0:00:11]}  Bxg2 {[%clk 0:00:48]} 40. Nxg2 {[%clk 0:00:09]}  Kf7 {[%clk 0:00:49]} 41. Nf4 {[%clk 0:00:09]}  Bd8 {[%clk 0:00:45]} 42. Nd5 {[%clk 0:00:05]}  Ke6 {[%clk 0:00:42]} 43. Nf4+ {[%clk 0:00:06]}  Kf5 {[%clk 0:00:41]} 44. Kg2 {[%clk 0:00:06]}  b6 {[%clk 0:00:38]} 45. Nd5 {[%clk 0:00:06]}  Ke6 {[%clk 0:00:34]} 46. Kf3 {[%clk 0:00:07]}  Kxd6 {[%clk 0:00:33]} 47. Nxb6 {[%clk 0:00:06]}  Rf7+ {[%clk 0:00:31]} 48. Kg2 {[%clk 0:00:05]}  Re7 {[%clk 0:00:29]} 49. Nd5 {[%clk 0:00:03]}  Re2+ {[%clk 0:00:29]} 50. Kg1 {[%clk 0:00:03]}  g5 {[%clk 0:00:26]} 51. Rb8 {[%clk 0:00:03]}  Ba5 {[%clk 0:00:25]} 52. Rg8 {[%clk 0:00:02]}  Bd2 {[%clk 0:00:25]} 53. Rg6+ {[%clk 0:00:01]}  Ke5 {[%clk 0:00:24]} 54. Rg7 {[%clk 0:00:02]}  g4 {[%clk 0:00:19]} 55. Re7+ {[%clk 0:00:01]} 1-0


[Site "https://www.chess.com"]

[Event "Titled Tuesday Blitz May 24 Early 2022"]
[White "Balint, Vilmos"]
[Black "Dobre, Claudiu-Cristian"]
[WhiteFideId "718050"]
[BlackFideId "1211854"]
[WhiteElo "2059"]
[BlackElo "2207"]
[Result "0-1"]
[Round "06"]
[TimeControl "180+1"]
[Date "2022.05.25"]
[WhiteClock "0:02:29"]
[BlackClock "0:00:05"]

1. e4 {[%clk 0:02:52]}  Nc6 {[%clk 0:03:00]} 2. d4 {[%clk 0:02:52]}  d5 {[%clk 0:03:00]} 3. exd5 {[%clk 0:02:52]}  Qxd5 {[%clk 0:02:59]} 4. Ne2 {[%clk 0:02:53]}  e5 {[%clk 0:02:59]} 5. Nbc3 {[%clk 0:02:53]}  Bb4 {[%clk 0:02:58]} 6. Bd2 {[%clk 0:02:45]}  Bxc3 {[%clk 0:02:58]} 7. Bxc3 {[%clk 0:02:46]}  exd4 {[%clk 0:02:52]} 8. Nxd4 {[%clk 0:02:46]}  Nxd4 {[%clk 0:02:46]} 9. Qxd4 {[%clk 0:02:45]}  Qxd4 {[%clk 0:02:45]} 10. Bxd4 {[%clk 0:02:45]}  Nf6 {[%clk 0:02:45]} 11. O-O-O {[%clk 0:02:43]}  Be6 {[%clk 0:02:43]} 12. Be2 {[%clk 0:02:36]}  O-O {[%clk 0:02:34]} 13. Bf3 {[%clk 0:02:35]}  c6 {[%clk 0:02:25]} 14. Bc5 {[%clk 0:02:35]}  Rfd8 {[%clk 0:02:21]} 15. Rxd8+ {[%clk 0:02:35]}  Rxd8 {[%clk 0:02:20]} 16. a3 {[%clk 0:02:33]}  a6 {[%clk 0:02:09]} 17. Be7 {[%clk 0:02:33]}  Rd7 {[%clk 0:02:08]} 18. Bxf6 {[%clk 0:02:33]}  gxf6 {[%clk 0:02:08]} 19. Rd1 {[%clk 0:02:34]}  Rxd1+ {[%clk 0:02:03]} 20. Kxd1 {[%clk 0:02:35]}  a5 {[%clk 0:01:48]} 21. Kd2 {[%clk 0:02:34]}  Kf8 {[%clk 0:01:48]} 22. b4 {[%clk 0:02:32]}  axb4 {[%clk 0:01:48]} 23. axb4 {[%clk 0:02:33]}  Ke7 {[%clk 0:01:48]} 24. Kd3 {[%clk 0:02:33]}  Kd6 {[%clk 0:01:47]} 25. c4 {[%clk 0:02:34]}  b6 {[%clk 0:01:47]} 26. Kd4 {[%clk 0:02:34]}  c5+ {[%clk 0:01:47]} 27. bxc5+ {[%clk 0:02:34]}  bxc5+ {[%clk 0:01:47]} 28. Kd3 {[%clk 0:02:35]}  Ke5 {[%clk 0:01:47]} 29. Be4 {[%clk 0:02:35]}  f5 {[%clk 0:01:02]} 30. Bf3 {[%clk 0:02:34]}  f4 {[%clk 0:00:48]} 31. g3 {[%clk 0:02:34]}  f6 {[%clk 0:00:45]} 32. Bc6 {[%clk 0:02:33]}  Bf5+ {[%clk 0:00:42]} 33. Kc3 {[%clk 0:02:32]}  fxg3 {[%clk 0:00:35]} 34. hxg3 {[%clk 0:02:32]}  Kd6 {[%clk 0:00:16]} 35. Bg2 {[%clk 0:02:31]}  h6 {[%clk 0:00:16]} 36. Kd2 {[%clk 0:02:31]}  Ke5 {[%clk 0:00:15]} 37. Ke3 {[%clk 0:02:30]}  Be6 {[%clk 0:00:15]} 38. f4+ {[%clk 0:02:31]}  Kd6 {[%clk 0:00:15]} 39. Bf1 {[%clk 0:02:31]}  Bf5 {[%clk 0:00:14]} 40. Bd3 {[%clk 0:02:30]}  Be6 {[%clk 0:00:13]} 41. Kf3 {[%clk 0:02:29]}  Ke7 {[%clk 0:00:13]} 42. Kg2 {[%clk 0:02:26]}  Kf7 {[%clk 0:00:11]} 43. Kf3 {[%clk 0:02:27]}  Ke7 {[%clk 0:00:11]} 44. g4 {[%clk 0:02:27]}  Kd6 {[%clk 0:00:11]} 45. Kg3 {[%clk 0:02:27]}  Ke7 {[%clk 0:00:11]} 46. Kh4 {[%clk 0:02:28]}  Kf8 {[%clk 0:00:11]} 47. Be2 {[%clk 0:02:27]}  Kg7 {[%clk 0:00:10]} 48. Kh5 {[%clk 0:02:27]}  Bf7+ {[%clk 0:00:10]} 49. Kh4 {[%clk 0:02:27]}  Be6 {[%clk 0:00:10]} 50. Bd3 {[%clk 0:02:27]}  Kf8 {[%clk 0:00:10]} 51. Kg3 {[%clk 0:02:26]}  Ke7 {[%clk 0:00:09]} 52. Be2 {[%clk 0:02:26]}  Kf8 {[%clk 0:00:09]} 53. Kf3 {[%clk 0:02:27]}  Ke7 {[%clk 0:00:08]} 54. Ke4 {[%clk 0:02:27]}  Kd6 {[%clk 0:00:09]} 55. Kd3 {[%clk 0:02:28]}  Ke7 {[%clk 0:00:09]} 56. Bf3 {[%clk 0:02:28]}  Kd6 {[%clk 0:00:09]} 57. Kc3 {[%clk 0:02:28]}  Kd7 {[%clk 0:00:08]} 58. Be2 {[%clk 0:02:29]}  Kd6 {[%clk 0:00:08]} 59. Kb3 {[%clk 0:02:29]}  Kc7 {[%clk 0:00:08]} 60. Ka4 {[%clk 0:02:30]}  Kb6 {[%clk 0:00:09]} 61. Ka3 {[%clk 0:02:29]}  Ka5 {[%clk 0:00:09]} 62. Kb3 {[%clk 0:02:30]}  Bf7 {[%clk 0:00:08]} 63. Bd3 {[%clk 0:02:25]}  Be6 {[%clk 0:00:07]} 64. Be2 {[%clk 0:02:26]}  Bf7 {[%clk 0:00:06]} 65. Kc3 {[%clk 0:02:26]}  Kb6 {[%clk 0:00:05]} 66. Bf3 {[%clk 0:02:27]}  Be6 {[%clk 0:00:04]} 67. Kb3 {[%clk 0:02:27]}  Ka5 {[%clk 0:00:04]} 68. Bd5 {[%clk 0:02:28]}  Bxg4 {[%clk 0:00:03]} 69. Bf7 {[%clk 0:02:27]}  h5 {[%clk 0:00:04]} 70. Bg6 {[%clk 0:02:26]}  h4 {[%clk 0:00:04]} 71. Be4 {[%clk 0:02:27]}  h3 {[%clk 0:00:04]} 72. Bf3 {[%clk 0:02:28]}  Bxf3 {[%clk 0:00:04]} 73. Kc3 {[%clk 0:02:28]}  h2 {[%clk 0:00:05]} 74. Kd3 {[%clk 0:02:29]}  h1=Q {[%clk 0:00:05]} 0-1


[Site "https://www.chess.com"]

[Event "Titled Tuesday Blitz May 24 Early 2022"]
[White "Bas Mas, Jose Joaquin"]
[Black "Guzman, Christopher"]
[WhiteFideId "22219064"]
[BlackFideId "6405096"]
[WhiteElo "2233"]
[BlackElo "2244"]
[Result "0-1"]
[Round "06"]
[TimeControl "180+1"]
[Date "2022.05.25"]
[WhiteClock "0:02:17"]
[BlackClock "0:02:21"]

1. e4 {[%clk 0:03:00]}  c6 {[%clk 0:02:59]} 2. Nc3 {[%clk 0:02:56]}  d5 {[%clk 0:02:59]} 3. Nf3 {[%clk 0:02:54]}  dxe4 {[%clk 0:02:57]} 4. Nxe4 {[%clk 0:02:52]}  Nf6 {[%clk 0:02:56]} 5. d3 {[%clk 0:02:47]}  Bg4 {[%clk 0:02:52]} 6. Be2 {[%clk 0:02:39]}  Nbd7 {[%clk 0:02:49]} 7. O-O {[%clk 0:02:38]}  Bxf3 {[%clk 0:02:48]} 8. Bxf3 {[%clk 0:02:37]}  e6 {[%clk 0:02:47]} 9. a4 {[%clk 0:02:34]}  Qc7 {[%clk 0:02:47]} 10. h3 {[%clk 0:02:32]}  Be7 {[%clk 0:02:47]} 11. a5 {[%clk 0:02:32]}  O-O {[%clk 0:02:46]} 12. Re1 {[%clk 0:02:31]}  Rfd8 {[%clk 0:02:44]} 13. Qe2 {[%clk 0:02:28]}  h6 {[%clk 0:02:40]} 14. b3 {[%clk 0:02:27]}  Nd5 {[%clk 0:02:37]} 15. Bb2 {[%clk 0:02:25]}  N7f6 {[%clk 0:02:37]} 16. c4 {[%clk 0:02:20]}  Nf4 {[%clk 0:02:34]} 17. Qe3 {[%clk 0:02:17]}  Rxd3 {[%clk 0:02:21]} 0-1


[Site "https://www.chess.com"]

[Event "Titled Tuesday Blitz May 24 Early 2022"]
[White "Bellissimo, Joseph F."]
[Black "Aradhya, Garg"]
[WhiteFideId "2609843"]
[BlackFideId "25006746"]
[WhiteElo "2061"]
[BlackElo "2169"]
[Result "0-1"]
[Round "06"]
[TimeControl "180+1"]
[Date "2022.05.24"]
[WhiteClock "0:02:10"]
[BlackClock "0:02:33"]

1. e4 {[%clk 0:03:00]}  e5 {[%clk 0:02:59]} 2. Nf3 {[%clk 0:03:00]}  Nc6 {[%clk 0:02:59]} 3. Bc4 {[%clk 0:03:00]}  Nf6 {[%clk 0:02:59]} 4. d3 {[%clk 0:03:00]}  Bc5 {[%clk 0:02:59]} 5. c3 {[%clk 0:02:58]}  O-O {[%clk 0:02:59]} 6. O-O {[%clk 0:02:56]}  d5 {[%clk 0:02:59]} 7. exd5 {[%clk 0:02:56]}  Nxd5 {[%clk 0:03:00]} 8. h3 {[%clk 0:02:55]}  a5 {[%clk 0:02:58]} 9. Re1 {[%clk 0:02:54]}  Nb6 {[%clk 0:02:57]} 10. Bb3 {[%clk 0:02:53]}  Bd6 {[%clk 0:02:53]} 11. Nbd2 {[%clk 0:02:52]}  a4 {[%clk 0:02:51]} 12. Bc2 {[%clk 0:02:52]}  f5 {[%clk 0:02:46]} 13. Nc4 {[%clk 0:02:38]}  Nxc4 {[%clk 0:02:45]} 14. dxc4 {[%clk 0:02:37]}  Be6 {[%clk 0:02:44]} 15. Bxa4 {[%clk 0:02:34]}  Bxc4 {[%clk 0:02:43]} 16. Bb3 {[%clk 0:02:34]}  Bxb3 {[%clk 0:02:40]} 17. Qxb3+ {[%clk 0:02:35]}  Kh8 {[%clk 0:02:40]} 18. Qxb7 {[%clk 0:02:33]}  Qd7 {[%clk 0:02:40]} 19. Qb3 {[%clk 0:02:32]}  e4 {[%clk 0:02:40]} 20. Nd4 {[%clk 0:02:30]}  Ne5 {[%clk 0:02:37]} 21. Qe6 {[%clk 0:02:28]}  Qd8 {[%clk 0:02:35]} 22. Nxf5 {[%clk 0:02:10]}  Rf6 {[%clk 0:02:34]} 23. Nxd6 {[%clk 0:02:10]}  Rxe6 {[%clk 0:02:33]} 24. Nf7+ {[%clk 0:02:10]}  Nxf7 {[%clk 0:02:33]} 0-1


[Site "https://www.chess.com"]

[Event "Titled Tuesday Blitz May 24 Early 2022"]
[White "Borgaonkar Akshay"]
[Black "Tologon tegin, Semetei"]
[WhiteFideId "25639110"]
[BlackFideId "13800574"]
[WhiteElo "1639"]
[BlackElo "2258"]
[Result "0-1"]
[Round "06"]
[TimeControl "180+1"]
[Date "2022.05.25"]
[WhiteClock "0:00:10"]
[BlackClock "0:00:12"]

1. d4 {[%clk 0:03:00]}  Nf6 {[%clk 0:02:59]} 2. Bg5 {[%clk 0:03:00]}  d5 {[%clk 0:02:57]} 3. Nc3 {[%clk 0:02:58]}  Nbd7 {[%clk 0:02:56]} 4. Qd2 {[%clk 0:02:57]}  h6 {[%clk 0:02:55]} 5. Bh4 {[%clk 0:02:56]}  c6 {[%clk 0:02:53]} 6. e3 {[%clk 0:02:55]}  e5 {[%clk 0:02:44]} 7. dxe5 {[%clk 0:02:49]}  Nxe5 {[%clk 0:02:43]} 8. Bg3 {[%clk 0:02:49]}  Bd6 {[%clk 0:02:39]} 9. Nf3 {[%clk 0:02:45]}  Qe7 {[%clk 0:02:36]} 10. Be2 {[%clk 0:02:36]}  O-O {[%clk 0:02:35]} 11. O-O {[%clk 0:02:33]}  Bf5 {[%clk 0:02:29]} 12. Nxe5 {[%clk 0:02:31]}  Bxe5 {[%clk 0:02:29]} 13. Bd3 {[%clk 0:02:31]}  Bg6 {[%clk 0:02:15]} 14. Rfe1 {[%clk 0:02:26]}  Rad8 {[%clk 0:02:09]} 15. Bxe5 {[%clk 0:02:12]}  Qxe5 {[%clk 0:02:09]} 16. f4 {[%clk 0:02:12]}  Qe7 {[%clk 0:02:01]} 17. Bxg6 {[%clk 0:02:02]}  fxg6 {[%clk 0:02:01]} 18. Qd3 {[%clk 0:02:02]}  Kh7 {[%clk 0:01:57]} 19. Rad1 {[%clk 0:01:58]}  Rfe8 {[%clk 0:01:51]} 20. h3 {[%clk 0:01:50]}  Qe6 {[%clk 0:01:48]} 21. Qd4 {[%clk 0:01:44]}  b6 {[%clk 0:01:47]} 22. Qd2 {[%clk 0:01:26]}  Rd7 {[%clk 0:01:45]} 23. Qf2 {[%clk 0:01:25]}  Rde7 {[%clk 0:01:45]} 24. Re2 {[%clk 0:01:18]}  Qf5 {[%clk 0:01:35]} 25. g4 {[%clk 0:01:15]}  Qd7 {[%clk 0:01:31]} 26. Qf3 {[%clk 0:01:07]}  h5 {[%clk 0:01:22]} 27. g5 {[%clk 0:01:05]}  Ne4 {[%clk 0:01:22]} 28. Nxe4 {[%clk 0:00:59]}  Rxe4 {[%clk 0:01:23]} 29. Rde1 {[%clk 0:00:51]}  Qe6 {[%clk 0:01:18]} 30. Kf2 {[%clk 0:00:50]}  Qf5 {[%clk 0:01:09]} 31. c3 {[%clk 0:00:49]}  c5 {[%clk 0:01:08]} 32. Rd1 {[%clk 0:00:44]}  a5 {[%clk 0:01:03]} 33. Rdd2 {[%clk 0:00:39]}  a4 {[%clk 0:01:01]} 34. a3 {[%clk 0:00:38]}  b5 {[%clk 0:00:59]} 35. Rd1 {[%clk 0:00:37]}  Qe6 {[%clk 0:00:46]} 36. Rdd2 {[%clk 0:00:27]}  Rf8 {[%clk 0:00:46]} 37. Kg3 {[%clk 0:00:25]}  Rf5 {[%clk 0:00:43]} 38. h4 {[%clk 0:00:23]}  Rf7 {[%clk 0:00:35]} 39. Re1 {[%clk 0:00:22]}  Re7 {[%clk 0:00:34]} 40. Rde2 {[%clk 0:00:19]}  d4 {[%clk 0:00:32]} 41. cxd4 {[%clk 0:00:19]}  cxd4 {[%clk 0:00:32]} 42. Kf2 {[%clk 0:00:20]}  d3 {[%clk 0:00:32]} 43. Rd2 {[%clk 0:00:20]}  Rd7 {[%clk 0:00:31]} 44. Red1 {[%clk 0:00:20]}  Qc4 {[%clk 0:00:31]} 45. Kg3 {[%clk 0:00:15]}  Rd5 {[%clk 0:00:23]} 46. Kf2 {[%clk 0:00:14]}  Re7 {[%clk 0:00:19]} 47. Re1 {[%clk 0:00:09]}  Rd6 {[%clk 0:00:15]} 48. Red1 {[%clk 0:00:09]}  Red7 {[%clk 0:00:14]} 49. Kg3 {[%clk 0:00:05]}  Qb3 {[%clk 0:00:14]} 50. f5 {[%clk 0:00:04]}  Qf7 {[%clk 0:00:11]} 51. fxg6+ {[%clk 0:00:04]}  Qxg6 {[%clk 0:00:11]} 52. e4 {[%clk 0:00:03]}  Rd4 {[%clk 0:00:11]} 53. Rxd3 {[%clk 0:00:03]}  Qd6+ {[%clk 0:00:11]} 54. Kg2 {[%clk 0:00:01]}  Rxd3 {[%clk 0:00:12]} 55. Rxd3 {[%clk 0:00:01]}  Qxd3 {[%clk 0:00:11]} 56. Qf5+ {[%clk 0:00:02]}  Kg8 {[%clk 0:00:11]} 57. Qe6+ {[%clk 0:00:02]}  Kf8 {[%clk 0:00:11]} 58. g6 {[%clk 0:00:02]}  Qe2+ {[%clk 0:00:10]} 59. Kg3 {[%clk 0:00:02]}  Rd3+ {[%clk 0:00:11]} 60. Kf4 {[%clk 0:00:02]}  Qh2+ {[%clk 0:00:10]} 61. Kg5 {[%clk 0:00:02]}  Qg3+ {[%clk 0:00:10]} 62. Kxh5 {[%clk 0:00:02]}  Qf3+ {[%clk 0:00:10]} 63. Kg5 {[%clk 0:00:02]}  Qg2+ {[%clk 0:00:10]} 64. Kf5 {[%clk 0:00:03]}  Qh3+ {[%clk 0:00:10]} 65. Ke5 {[%clk 0:00:04]}  Qxe6+ {[%clk 0:00:10]} 66. Kxe6 {[%clk 0:00:05]}  Rxa3 {[%clk 0:00:10]} 67. e5 {[%clk 0:00:05]}  Rb3 {[%clk 0:00:10]} 68. h5 {[%clk 0:00:06]}  Rxb2 {[%clk 0:00:10]} 69. h6 {[%clk 0:00:07]}  gxh6 {[%clk 0:00:11]} 70. Kf6 {[%clk 0:00:08]}  Rf2+ {[%clk 0:00:10]} 71. Ke6 {[%clk 0:00:07]}  Kg7 {[%clk 0:00:09]} 72. Kd7 {[%clk 0:00:07]}  Kxg6 {[%clk 0:00:10]} 73. e6 {[%clk 0:00:07]}  Re2 {[%clk 0:00:10]} 74. e7 {[%clk 0:00:08]}  Rxe7+ {[%clk 0:00:10]} 75. Kxe7 {[%clk 0:00:08]}  a3 {[%clk 0:00:11]} 76. Kd6 {[%clk 0:00:09]}  a2 {[%clk 0:00:12]} 77. Kc5 {[%clk 0:00:10]} 0-1


[Site "https://www.chess.com"]

[Event "Titled Tuesday Blitz May 24 Early 2022"]
[White "Butti, Enrique"]
[Black "Vittorino, Carlo Giovanni"]
[WhiteFideId "3700470"]
[BlackFideId "4401247"]
[WhiteElo "2080"]
[BlackElo "2233"]
[Result "1-0"]
[Round "06"]
[TimeControl "180+1"]
[Date "2022.05.25"]
[WhiteClock "0:02:36"]
[BlackClock "0:02:11"]

1. d4 {[%clk 0:03:00]}  Nf6 {[%clk 0:02:59]} 2. Nf3 {[%clk 0:03:00]}  b6 {[%clk 0:02:58]} 3. e3 {[%clk 0:02:59]}  Bb7 {[%clk 0:02:58]} 4. Bd3 {[%clk 0:02:59]}  e6 {[%clk 0:02:57]} 5. O-O {[%clk 0:02:58]}  c5 {[%clk 0:02:57]} 6. b3 {[%clk 0:02:57]}  Be7 {[%clk 0:02:55]} 7. Bb2 {[%clk 0:02:56]}  O-O {[%clk 0:02:55]} 8. c4 {[%clk 0:02:55]}  cxd4 {[%clk 0:02:55]} 9. exd4 {[%clk 0:02:53]}  d5 {[%clk 0:02:56]} 10. Nc3 {[%clk 0:02:52]}  Nc6 {[%clk 0:02:53]} 11. Qe2 {[%clk 0:02:50]}  dxc4 {[%clk 0:02:52]} 12. bxc4 {[%clk 0:02:49]}  Nxd4 {[%clk 0:02:32]} 13. Nxd4 {[%clk 0:02:48]}  Qxd4 {[%clk 0:02:33]} 14. Nd5 {[%clk 0:02:47]}  Qc5 {[%clk 0:02:34]} 15. Bxf6 {[%clk 0:02:46]}  Bxf6 {[%clk 0:02:34]} 16. Qe4 {[%clk 0:02:42]}  Rfb8 {[%clk 0:02:12]} 17. Qxh7+ {[%clk 0:02:36]}  Kf8 {[%clk 0:02:11]} 18. Qh8# {[%clk 0:02:36]} 1-0


[Site "https://www.chess.com"]

[Event "Titled Tuesday Blitz May 24 Early 2022"]
[White "Castaneda, Jhon David"]
[Black "Hart, Braeden"]
[WhiteFideId "4405048"]
[BlackFideId "30962587"]
[WhiteElo "2152"]
[BlackElo "2389"]
[Result "1-0"]
[Round "06"]
[TimeControl "180+1"]
[Date "2022.05.25"]
[WhiteClock "0:00:13"]
[BlackClock "0:00:26"]

1. d4 {[%clk 0:03:00]}  e5 {[%clk 0:03:00]} 2. dxe5 {[%clk 0:02:59]}  d6 {[%clk 0:03:00]} 3. Nf3 {[%clk 0:02:58]}  Bg4 {[%clk 0:03:00]} 4. e4 {[%clk 0:02:54]}  Nc6 {[%clk 0:02:59]} 5. Bb5 {[%clk 0:02:52]}  dxe5 {[%clk 0:03:00]} 6. Qe2 {[%clk 0:02:50]}  Bd6 {[%clk 0:02:53]} 7. h3 {[%clk 0:02:46]}  Bh5 {[%clk 0:02:51]} 8. Nc3 {[%clk 0:02:40]}  Ne7 {[%clk 0:02:50]} 9. g4 {[%clk 0:02:37]}  Bg6 {[%clk 0:02:50]} 10. Be3 {[%clk 0:02:37]}  O-O {[%clk 0:02:49]} 11. h4 {[%clk 0:02:32]}  Bb4 {[%clk 0:02:46]} 12. Rd1 {[%clk 0:02:07]}  Qc8 {[%clk 0:02:44]} 13. Bxc6 {[%clk 0:01:49]}  Nxc6 {[%clk 0:02:41]} 14. Ng5 {[%clk 0:01:48]}  f6 {[%clk 0:01:59]} 15. h5 {[%clk 0:01:37]}  Be8 {[%clk 0:01:58]} 16. Nh3 {[%clk 0:01:16]}  Bd7 {[%clk 0:01:58]} 17. f3 {[%clk 0:01:15]}  Be6 {[%clk 0:01:52]} 18. Kf2 {[%clk 0:01:14]}  Bxc3 {[%clk 0:01:44]} 19. bxc3 {[%clk 0:01:13]}  Rd8 {[%clk 0:01:44]} 20. c4 {[%clk 0:00:54]}  Nd4 {[%clk 0:01:43]} 21. Bxd4 {[%clk 0:00:51]}  Rxd4 {[%clk 0:01:42]} 22. Rxd4 {[%clk 0:00:51]}  exd4 {[%clk 0:01:43]} 23. Nf4 {[%clk 0:00:48]}  Qd7 {[%clk 0:01:40]} 24. Rd1 {[%clk 0:00:46]}  c5 {[%clk 0:01:40]} 25. Nd5 {[%clk 0:00:35]}  Bxd5 {[%clk 0:01:33]} 26. cxd5 {[%clk 0:00:36]}  Qd6 {[%clk 0:01:31]} 27. Kg2 {[%clk 0:00:35]}  Re8 {[%clk 0:01:29]} 28. Qb5 {[%clk 0:00:31]}  Re7 {[%clk 0:01:27]} 29. a4 {[%clk 0:00:29]}  h6 {[%clk 0:01:17]} 30. Qc4 {[%clk 0:00:24]}  b6 {[%clk 0:01:17]} 31. Rb1 {[%clk 0:00:23]}  Kh7 {[%clk 0:01:13]} 32. a5 {[%clk 0:00:20]}  Qf4 {[%clk 0:01:12]} 33. Qe2 {[%clk 0:00:17]}  Rb7 {[%clk 0:01:10]} 34. a6 {[%clk 0:00:16]}  Rc7 {[%clk 0:01:03]} 35. Rb5 {[%clk 0:00:16]}  c4 {[%clk 0:01:02]} 36. Qf2 {[%clk 0:00:15]}  d3 {[%clk 0:00:58]} 37. Rb1 {[%clk 0:00:14]}  c3 {[%clk 0:00:57]} 38. Rd1 {[%clk 0:00:12]}  d2 {[%clk 0:00:57]} 39. Qe2 {[%clk 0:00:12]}  Qd6 {[%clk 0:00:41]} 40. Qd3 {[%clk 0:00:13]}  Rc5 {[%clk 0:00:26]} 41. e5+ {[%clk 0:00:13]} 1-0


[Site "https://www.chess.com"]

[Event "Titled Tuesday Blitz May 24 Early 2022"]
[White "Chen, Qi b"]
[Black "Kuderinov, Kirill"]
[WhiteFideId "8614733"]
[BlackFideId "13701568"]
[WhiteElo "2432"]
[BlackElo "2432"]
[Result "1-0"]
[Round "06"]
[TimeControl "180+1"]
[Date "2022.05.25"]
[WhiteClock "0:01:15"]
[BlackClock "0:02:31"]

1. d4 {[%clk 0:03:00]}  Nf6 {[%clk 0:02:59]} 2. c4 {[%clk 0:03:00]}  e6 {[%clk 0:03:00]} 3. Nc3 {[%clk 0:03:00]}  d5 {[%clk 0:03:00]} 4. Nf3 {[%clk 0:02:58]}  c5 {[%clk 0:03:00]} 5. e3 {[%clk 0:02:50]}  cxd4 {[%clk 0:03:00]} 6. exd4 {[%clk 0:02:48]}  dxc4 {[%clk 0:03:00]} 7. Bxc4 {[%clk 0:02:48]}  Bb4 {[%clk 0:03:00]} 8. O-O {[%clk 0:02:48]}  O-O {[%clk 0:03:00]} 9. Qe2 {[%clk 0:02:45]}  Nc6 {[%clk 0:02:59]} 10. Be3 {[%clk 0:02:45]}  Qa5 {[%clk 0:02:59]} 11. Rfc1 {[%clk 0:02:38]}  e5 {[%clk 0:02:53]} 12. d5 {[%clk 0:02:24]}  Bxc3 {[%clk 0:02:48]} 13. dxc6 {[%clk 0:02:18]}  Bg4 {[%clk 0:02:47]} 14. cxb7 {[%clk 0:01:52]}  Rab8 {[%clk 0:02:46]} 15. Rxc3 {[%clk 0:01:46]}  e4 {[%clk 0:02:46]} 16. h3 {[%clk 0:01:29]}  exf3 {[%clk 0:02:45]} 17. Qe1 {[%clk 0:01:21]}  Bh5 {[%clk 0:02:35]} 18. Rb3 {[%clk 0:01:16]}  fxg2 {[%clk 0:02:31]} 19. Qxa5 {[%clk 0:01:15]} 1-0


[Site "https://www.chess.com"]

[Event "Titled Tuesday Blitz May 24 Early 2022"]
[White "De Souza, Cristiano Gomes"]
[Black "Dushyant Sharma"]
[WhiteFideId "2151758"]
[BlackFideId "25065130"]
[WhiteElo "2068"]
[BlackElo "2105"]
[Result "1-0"]
[Round "06"]
[TimeControl "180+1"]
[Date "2022.05.25"]
[WhiteClock "0:02:11"]
[BlackClock "0:02:10"]

1. d4 {[%clk 0:03:00]}  d5 {[%clk 0:03:00]} 2. c4 {[%clk 0:03:00]}  e6 {[%clk 0:02:59]} 3. Nf3 {[%clk 0:03:00]}  Nf6 {[%clk 0:02:55]} 4. Nc3 {[%clk 0:03:01]}  Be7 {[%clk 0:02:53]} 5. Bg5 {[%clk 0:03:00]}  O-O {[%clk 0:02:52]} 6. e3 {[%clk 0:03:00]}  Ne4 {[%clk 0:02:53]} 7. Bxe7 {[%clk 0:03:00]}  Qxe7 {[%clk 0:02:54]} 8. cxd5 {[%clk 0:03:00]}  Nxc3 {[%clk 0:02:53]} 9. bxc3 {[%clk 0:03:01]}  exd5 {[%clk 0:02:54]} 10. Qb3 {[%clk 0:03:01]}  c6 {[%clk 0:02:53]} 11. c4 {[%clk 0:03:00]}  Be6 {[%clk 0:02:52]} 12. Be2 {[%clk 0:02:59]}  dxc4 {[%clk 0:02:48]} 13. Bxc4 {[%clk 0:02:58]}  Bxc4 {[%clk 0:02:49]} 14. Qxc4 {[%clk 0:02:58]}  Nd7 {[%clk 0:02:50]} 15. O-O {[%clk 0:02:57]}  Kh8 {[%clk 0:02:49]} 16. Rab1 {[%clk 0:02:56]}  Rab8 {[%clk 0:02:48]} 17. Rfc1 {[%clk 0:02:52]}  Nb6 {[%clk 0:02:48]} 18. Qc5 {[%clk 0:02:51]}  Qe6 {[%clk 0:02:46]} 19. Rc2 {[%clk 0:02:39]}  Nd5 {[%clk 0:02:43]} 20. Qxa7 {[%clk 0:02:34]}  b5 {[%clk 0:02:20]} 21. Qc5 {[%clk 0:02:28]}  Rbc8 {[%clk 0:02:18]} 22. Rbc1 {[%clk 0:02:24]}  b4 {[%clk 0:02:16]} 23. Ne5 {[%clk 0:02:16]}  f5 {[%clk 0:02:10]} 24. Nxc6 {[%clk 0:02:11]}  Nf4 {[%clk 0:02:10]} 1-0


[Site "https://www.chess.com"]